{"text_format":"1","workbook":"xlsx","n_sheets":2,"sheets":["MTIPF FIMEC MTP DEPALETTISEUR","Feuil1"],"not_rendered":{"charts":0,"images":1,"macros":1,"external_links":4,"defined_names":15,"comments":0,"pivot_tables":0},"unopened":[],"bounds":{"document_bytes":16777216,"sheet_cells":100000,"rows_first":2000,"rows_last":500,"rows_between":2000,"halvings":0,"cell_chars":16384,"cell_head_chars":4096},"cells_cut":0,"cells_raw":0,"read":"whole","date_system":"1900"}

{"sheet":"MTIPF FIMEC MTP DEPALETTISEUR","index":0,"n_rows":63,"n_cols":11,"rows_kept":63,"cut":false,"hidden":false,"merged":[[7,2,7,10],[25,2,25,10],[30,2,30,10],[41,2,41,10],[52,2,52,10],[58,2,58,10]]}
[]
[]
["Chef d'unité :",null,"Chef d'unité",null,"Date :","2016-02-18"]
["Localisation géographique :",null,"Localisation géographique :","PIC Lognes"]
["Personnel concerné :",null,"Personnel concerné :","Techniciens FIVES","Lieu :","Lognes"]
[]
["Personnel concerné",null,"Dangers \nou \nfacteurs de risques identifiés","Description des risques ou \nsituations à risques","Conséquences","Moyens de préventions existants:\ndescription","F","G","M","T","Actions associées"]
[null,null,"Machines"]
[null,null,"Appareils à Pression","Machine utilisant l'énergie pneumatique","Coups reçus par détachement du flexible","Organisationnel : Consignation de l'équipement avant toute intervention (possibilité de sectionner le trieur par secteur)\nCollectifs : \nCadenas de consignation",5,5,2,{"$f":"G9*H9*I9","v":50}]
[null,null,"Accès au moyen","Accès convoyeur","Douleur genou posture pénalisante","Individuels :\nPort de la casquette anti-heurt\nPort des chaussures de sécurité\nPort de genouillere",7,2,3,{"$f":"G10*H10*I10","v":42},"Sensibilisation Gestes et postures"]
[null,null,"Accès au moyen","Accès parties basses des machines malaisé","Douleur dorsale, posture pénalisante","Collectif :\nSensibilisation gestes et postures\nIndividuels :\nPort de la casquette anti-heurt\nPort des chaussures de sécurité",5,2,3,30]
[null,null,"Chute","Travaux en hauteur avec utilisation d'échelle, d'escabeau, de marchepied, de nacelle","Chutes de hauteur, traumatisme","Organisationnel :\nSensibilisation via le plan de prévention\nRédaction d'une autorisation annuel d'utilisation d'escabeaux ou marche pied\nCollectif :\nVérification des équipements avant utilisation\nIndividuel :\nPort des EPI travaux en hauteur\nFormation des techniciens",7,5,3,105,"Mettre en place autorisation de travail avec l'utilisation échelle, marchepied, escabeau"]
[null,null,"Chute","Utilisation escaliers","Chute de niveaux, trébuchement ","Collectif :\nTenir la rampe\nIndividuel :\nVigilance du personnel",7,2,3,42]
[null,null,"Chute d'objets","Chocs, écrasement, traumatismes divers","Chocs, écrasement, traumatismes divers","Individuel :\nPort des chaussures de sécurité",7,2,3,42]
[null,null,"Coupure","Contact avec outils ou matériaux coupants","Coupures ","Individuel :\nEPI : gants anti-coupures",7,2,1,14]
[null,"B1","Electricité","Contact direct avec des éléments sous tension en fonctionnement normal \nContact indirect (contact avec des masses mises accidentellement sous tension)","Electrocution / électrisation","Organisationnel :\nHabilitation des techniciens\nIndividuel : \nEPI électrique : gants, visière lors des opérations de consignation",7,7,1,49,"Utiliser les EPI éléctrique"]
[null,"C1","Electricité","Contact avec des éléments restant sous tension (onduleurs) pour l'alimentation de la baie informatique.","Electrocution / électrisation","Organisationnel :\nEteindre le matériel avant intervention.",7,7,1,49,"Utiliser les EPI éléctrique"]
[null,null,"Heurts","Chocs avec les élements apparents ","Contusion","Individuels :\nPort obligatoire de la casquette anti-heurts dès ouverture de capots\nPort des chaussures de sécurité",7,2,1,14]
[null,null,"Laser","Présence de capteur laser de catégorie 1 sur le trieur","Irritation de la cornée","Organisationnel : \nConsignation par secteur de l'équipement\nIndividuel : \nPort de lunette de sécurité",5,5,1,25]
[null,null,"Machines","Présence de moteur ","Brulûres","Organisationnel : \nIntervention après refroidissement du moteur\nIndividuel : \nPort de gants antichaleur",5,5,1,25]
[null,null,"Machines","Présence de rouleaux, tapis de convoyage","Happement, entrainement des mains","Organisationnel : \nIntervention après arrêt sectionnement du secteur d'intervention\nCollectif :\nCadenas de consignation",5,5,1,25]
[null,null,"Manutention manuelle","Poids des éléments à déposer","Douleurs dorsales.","Collectif :\nSensibilisation gestes et postures\nUtilisation des moyens de manutention à disposition\nManutention à 2",2,2,1,4]
[null,"D1","Mécanique ","Redémarrage partie mécanique avec capots ouverts","Happement / Pincement / coupure de doigts","Organisationnel :\nArrêt des équipements par action sur les BAU.",7,5,1,35]
[null,null,"Risque chimique","Utilisation de produits chimiques irritants lors des interventions (dégraissant / nettoyant).","Projection / contact avec produit\nAllergies, irritations","Individuel : \nEPI : gants nitriles, lunettes de protection",7,2,1,14]
[null,"B1","Thermique","Echauffement de la poulie du au frottement de la courroie si la poulie est bloquée.","Brûlures","Organisationnel :\nAtteindre le refroidissement de la poulie avant intervention.",1,2,3,6]
[null,"A1","Dépalettiseur"]
[null,null,"Accès au moyen","Accès parties basses des machines malaisé","Douleur dorsale, posture pénalisante","Collectif :\nSensibilisation gestes et postures\nIndividuels :\nPort de la casquette anti-heurt\nPort des chaussures de sécurité",5,2,3,{"$f":"G27*H27*I27","v":30}]
[null,null,"Chute","Travaux en hauteur avec utilisation d'échelle, d'escabeau, de marchepied, de nacelle","Chutes de hauteur, traumatisme","Organisationnel :\nSensibilisation via le plan de prévention\nRédaction d'une autorisation annuel d'utilisation d'escabeaux ou marche pied\nCollectif :\nVérification des équipements avant utilisation\nIndividuel :\nPort des EPI travaux en hauteur\nFormation des techniciens",7,5,1,35,"Mettre en place autorisation de travail avec l'utilisation échelle, marchepied, escabeau"]
[null,null,"Electricité","Contact direct avec des éléments sous tension en fonctionnement normal \nContact indirect (contact avec des masses mises accidentellement sous tension)\n","Electrocution / électrisation","Organisationnel :\nHabilitation des techniciens\n\nIndividuel : \nEPI électrique : gants, visière lors des opérations de consignation",7,5,1,35]
[null,null,"Risque chimique","Utilisation de produits chimiques irritants lors des interventions (dégraissant / nettoyant).","Projection / contact avec produit\nAllergies, irritations","Individuel : \nEPI : gants nitriles, lunettes de protection",7,2,1,{"$f":"G30*H30*I30","v":14}]
[null,null,"MTP"]
[null,null,"Accès au moyen","Accès parties basses des machines malaisé","Douleur dorsale, posture pénalisante","Collectif :\nSensibilisation gestes et postures\nIndividuels :\nPort de la casquette anti-heurt\nPort des chaussures de sécurité",7,2,3,{"$f":"G32*H32*I32","v":42}]
[null,null,"Chute","Chute de plain-pied, glissade ","Blessures diverses","Organisationnel : \nAccueil sécurité - Plan de prévention\nVigilance du personnel\nIndividuel : \nPort des chaussures de sécurité",7,2,1,14]
[null,null,"Chute","Intervention sur les tapis à bandes : lors de la vérification des godets (présence de courriers)","Blessures diverses","Organisationnel : \nConsignation de la machine\nIndividuel : \nPort des chaussures de sécurité",5,2,1,10]
[null,null,"Chute","Travaux en hauteur avec utilisation d'échelle, d'escabeau, de marchepied","Chutes de hauteur, traumatisme","Organisationnel :\nSensibilisation via le plan de prévention\nRédaction d'une autorisation annuel d'utilisation d'escabeaux ou marche pied\nCollectif :\nVérification des équipements avant utilisation\nIndividuel :\nPort des EPI travaux en hauteur\nFormation des techniciens",5,5,1,25,"Mettre en place autorisation de travail avec l'utilisation échelle, marchepied, escabeau"]
[null,null,"Chute d'objet","Chute d'objets (bac, godets…)","Chocs reçus","Individuel : \nPort des chaussures de sécurité",5,2,2,20]
[null,null,"Chute de hauteur","Présence d'escalier induisant un risque de chutes de hauteur","Blessures diverses","Collectifs :\nTenir la rampe\nVigilance du personnel",5,5,1,25]
[null,null,"Coupure","Contact avec outils ou matériaux coupants","Coupures ","Individuel :\nEPI : gants anti-coupures",5,2,1,10]
[null,null,"Electricité","Contact direct avec des éléments sous tension en fonctionnement normal \nContact indirect (contact avec des masses mises accidentellement sous tension)","Electrocution / électrisation","Organisationnel :\nHabilitation des techniciens\nIndividuel : \nEPI électrique : gants, visière lors des opérations de consignation",5,5,1,25]
[null,null,"Manutention manuelle","Poids des éléments à déposer","Douleurs dorsales.","Collectif :\nSensibilisation gestes et postures\nUtilisation des moyens de manutention à disposition\nManutention à 2",5,2,1,10,"Sensibilisation Gestes et postures"]
[null,null,"Risque chimique","Utilisation de produits chimiques irritants lors des interventions (dégraissant / nettoyant).","Projection / contact avec produit\nAllergies, irritations","Individuel : \nEPI : gants nitriles, lunettes de protection",5,2,1,{"$f":"G41*H41*I41","v":10}]
[null,null,"FIMEC"]
[null,null,"Appareils à Pression","Equipements utilisant l'énergie hydraulique","Coups reçus par détachement du flexible","Organisationnel : Consignation de l'équipement avant toute intervention\nCollectifs : \nCadenas de consignation",7,5,1,{"$f":"G43*H43*I43","v":35}]
[null,null,"Accès au moyen","Accès parties basses des machines malaisé","Douleur dorsale, posture pénalisante","Individuels :\nPort de la casquette anti-heurt\nPort des chaussures de sécurité",7,2,3,{"$f":"G44*H44*I44","v":42},"Sensibilisation Gestes et postures"]
[null,null,"Chute d'objets","Chocs, écrasement, traumatismes divers","Chocs, écrasement, traumatismes divers","Individuel :\nPort des chaussures de sécurité",7,2,3,42]
[null,null,"Electricité","Contact direct avec des éléments sous tension en fonctionnement normal \nContact indirect (contact avec des masses mises accidentellement sous tension)","Electrocution / électrisation","Organisationnel :\nHabilitation des techniciens\nIndividuel : \nEPI électrique : gants, visière lors des opérations de consignation",7,7,1,49,"Utiliser les EPI électrique et utiliser les FP"]
[null,null,"Heurts","Chocs avec les élements apparents ","Contusion","Individuels :\nPort obligatoire de la casquette anti-heurts dès ouverture de capots\nPort des chaussures de sécurité",7,2,1,14]
[null,null,"Machines","Présence de moteur ","Brulûres","Organisationnel : \nIntervention après refroidissement du moteur\nIndividuel : \nPort de gants antichaleur",1,5,1,5,"Commander des gants anti-chaleur"]
[null,null,"Machines","Présence de rouleaux, tapis de convoyage","Happement, entrainement des mains","Organisationnel : \nIntervention après arrêt sectionnement du secteur d'intervention\nCollectif :\nCadenas de consignation",7,5,1,35]
[null,null,"Manutention manuelle","Poids du capot de la centrale","Douleurs dorsales.","Collectif :\nSensibilisation gestes et postures\nUtilisation des moyens de manutention à disposition\nManutention à 2",7,2,1,14,"Sensibilisation Gestes et postures"]
[null,null,"Risque chimique","Contact avec des substances chimiques lors du nettoyage","Irritation","Individuel : \nEPI : gants nitriles, lunettes de protection",7,5,1,35]
[null,null,"Substances et Préparations Dangereuses","Utilisation de produits chimiques irritants lors des interventions (dégraissant / nettoyant).","Projection / contact avec produit\nAllergies, irritations","Individuel : \nEPI : gants nitriles, lunettes de protection",7,2,1,14]
[null,null,"TTF"]
[null,null,"Chute d'objets","Chocs, écrasement, traumatismes divers","Chocs, écrasement, traumatismes divers","Individuel :\nPort des chaussures de sécurité",7,2,3,{"$f":"G54*H54*I54","v":42}]
[null,null,"Coupure","Contact avec outils ou matériaux coupants","Coupures ","Individuel :\nEPI : gants anti-coupures",7,2,1,14]
[null,"B1","Electricité","Contact direct avec des éléments sous tension en fonctionnement normal \nContact indirect (contact avec des masses mises accidentellement sous tension)","Electrocution / électrisation","Organisationnel :\nHabilitation des techniciens\nIndividuel : \nEPI électrique : gants, visière lors des opérations de consignation",7,7,1,49,"Utiliser les EPI électrique et utiliser les FP"]
[null,"C1","Electricité","Contact avec des éléments restant sous tension (onduleurs) pour l'alimentation de la baie informatique.","Electrocution / électrisation","Organisationnel :\nEteindre le matériel avant intervention.",7,7,1,49,"Utiliser les EPI électrique et utiliser les FP"]
[null,null,"Heurts","Chocs avec les élements apparents ","Contusion","Individuels :\nPort obligatoire de la casquette anti-heurts dès ouverture de capots\nPort des chaussures de sécurité",7,2,1,14]
[null,null,"MTIPF"]
[null,null,"Chute d'objets","Chocs, écrasement, traumatismes divers","Chocs, écrasement, traumatismes divers","Individuel :\nPort des chaussures de sécurité",7,2,3,{"$f":"G60*H60*I60","v":42}]
[null,null,"Coupure","Contact avec outils ou matériaux coupants","Coupures ","Individuel :\nEPI : gants anti-coupures",7,2,1,14]
[null,"B1","Electricité","Contact direct avec des éléments sous tension en fonctionnement normal \nContact indirect (contact avec des masses mises accidentellement sous tension)","Electrocution / électrisation","Organisationnel :\nHabilitation des techniciens\nIndividuel : \nEPI électrique : gants, visière lors des opérations de consignation",7,7,1,49,"Utiliser les EPI électrique et utiliser les FP"]
[null,"C1","Electricité","Contact avec des éléments restant sous tension (onduleurs) pour l'alimentation de la baie informatique.","Electrocution / électrisation","Organisationnel :\nEteindre le matériel avant intervention.",7,7,1,49,"Utiliser les EPI électrique et utiliser les FP"]

{"sheet":"Feuil1","index":1,"n_rows":3,"n_cols":9,"rows_kept":3,"cut":false,"hidden":false,"merged":[]}
["Dangers \nou \nfacteurs de risques identifiés","Description des risques ou \nsituations à risques","Conséquences","Moyens de préventions existants:\ndescription","F","G","M","T","Actions associées"]
["Appareils à Pression","Machine utilisant l'énergie pneumatique","Coups reçus par détachement du flexible","Organisationnel : Consignation de l'équipement avant toute intervention (possibilité de sectionner le trieur par secteur)\nCollectifs : \nCadenas de consignation",5,5,2,{"$f":"E2*F2*G2","v":50}]
["Chute","Travaux en hauteur avec utilisation d'échelle, d'escabeau, de marchepied, de nacelle","Chutes de hauteur, traumatisme","Organisationnel :\nSensibilisation via le plan de prévention\nRédaction d'une autorisation annuel d'utilisation d'escabeaux ou marche pied\nCollectif :\nVérification des équipements avant utilisation\nIndividuel :\nPort des EPI travaux en hauteur\nFormation des techniciens",7,5,3,{"$f":"E3*F3*G3","v":105},"Mettre en place autorisation de travail avec l'utilisation échelle, marchepied, escabeau"]